[Event "*** Titled Tuesday Blitz"]
[Site "Chess.com"]
[Date "2020.05.12"]
[Round "5"]
[White "konradrutkowski"]
[Black "Milchone1"]
[Result "1-0"]
[WhiteElo "2264"]
[BlackElo "2477"]
[TimeControl "180+1"]
[EndTime "10:54:03 PDT"]
[Termination "konradrutkowski won by resignation"]

1. e4 {[%clk 0:03:00.9]} 1... g6 {[%clk 0:02:58.7]} 2. d4 {[%clk 0:03:00.6]}
2... Bg7 {[%clk 0:02:59.6]} 3. Nc3 {[%clk 0:03:00.6]} 3... c6 {[%clk 0:03:00]}
4. h3 {[%clk 0:02:58.5]} 4... d6 {[%clk 0:02:57.8]} 5. a4 {[%clk 0:02:52.5]}
5... Nf6 {[%clk 0:02:57.1]} 6. Be3 {[%clk 0:02:48.3]} 6... a5 {[%clk 0:02:56.6]}
7. Qd2 {[%clk 0:02:46.8]} 7... h5 {[%clk 0:02:56.4]} 8. Nf3 {[%clk 0:02:40.1]}
8... Na6 {[%clk 0:02:56]} 9. Bc4 {[%clk 0:02:36.8]} 9... Nb4 {[%clk 0:02:55.3]}
10. Bb3 {[%clk 0:02:29.5]} 10... d5 {[%clk 0:02:51]} 11. e5 {[%clk 0:02:15.6]}
11... Ng8 {[%clk 0:02:50.8]} 12. Ne2 {[%clk 0:02:10.7]} 12... Bf5 {[%clk
0:02:46.7]} 13. Ng3 {[%clk 0:02:06]} 13... Qd7 {[%clk 0:02:46.2]} 14. Nxf5
{[%clk 0:02:05.1]} 14... Qxf5 {[%clk 0:02:45.7]} 15. Nh4 {[%clk 0:01:52.7]}
15... Qe4 {[%clk 0:02:38.9]} 16. Nf3 {[%clk 0:01:48.7]} 16... Nh6 {[%clk
0:02:36.5]} 17. O-O {[%clk 0:01:43.1]} 17... Nf5 {[%clk 0:02:29.2]} 18. c3
{[%clk 0:01:37.3]} 18... Nxe3 {[%clk 0:02:26.7]} 19. fxe3 {[%clk 0:01:37.4]}
19... Bh6 {[%clk 0:02:22.3]} 20. Rae1 {[%clk 0:01:36.2]} 20... Qd3 {[%clk
0:01:54.2]} 21. Qxd3 {[%clk 0:01:28.6]} 21... Nxd3 {[%clk 0:01:53.9]} 22. Re2
{[%clk 0:01:28.5]} 22... e6 {[%clk 0:01:44.5]} 23. Rd1 {[%clk 0:01:08.6]} 23...
Nxb2 {[%clk 0:01:44.3]} 24. Rxb2 {[%clk 0:01:07.6]} 24... Bxe3+ {[%clk
0:01:44.6]} 25. Kf1 {[%clk 0:01:06.7]} 25... Kd7 {[%clk 0:01:41.8]} 26. Bc2
{[%clk 0:01:05]} 26... Rhb8 {[%clk 0:01:38.7]} 27. Rdb1 {[%clk 0:01:04.8]} 27...
Kc7 {[%clk 0:01:38.8]} 28. Ke2 {[%clk 0:01:04.5]} 28... Bh6 {[%clk 0:01:33.9]}
29. Ne1 {[%clk 0:01:03.3]} 29... b6 {[%clk 0:01:25.6]} 30. Nd3 {[%clk
0:01:03.1]} 30... Rb7 {[%clk 0:01:17.5]} 31. Rf1 {[%clk 0:01:01.9]} 31... Rf8
{[%clk 0:01:17]} 32. Bb1 {[%clk 0:00:51]} 32... Kd7 {[%clk 0:01:11.2]} 33. Nc5+
{[%clk 0:00:47.5]} 33... bxc5 {[%clk 0:01:10.8]} 34. Rxb7+ {[%clk 0:00:46.9]}
34... Kc8 {[%clk 0:01:11.7]} 35. Rfxf7 {[%clk 0:00:46.5]} 1-0

[Event "*** Titled Tuesday Blitz"]
[Site "Chess.com"]
[Date "2020.05.12"]
[Round "5"]
[White "Bagirova"]
[Black "Steven_Rojas"]
[Result "0-1"]
[WhiteElo "2187"]
[BlackElo "2356"]
[TimeControl "180+1"]
[EndTime "10:54:03 PDT"]
[Termination "Steven_Rojas won by resignation"]

1. d4 {[%clk 0:03:00.9]} 1... d5 {[%clk 0:02:59.1]} 2. c4 {[%clk 0:02:59.5]}
2... e6 {[%clk 0:02:58]} 3. Nc3 {[%clk 0:02:58.8]} 3... Nf6 {[%clk 0:02:54]} 4.
cxd5 {[%clk 0:02:59.1]} 4... exd5 {[%clk 0:02:54]} 5. Bg5 {[%clk 0:02:59.4]}
5... Be7 {[%clk 0:02:54.4]} 6. e3 {[%clk 0:03:00]} 6... O-O {[%clk 0:02:54.9]}
7. Bd3 {[%clk 0:03:00.5]} 7... h6 {[%clk 0:02:55.3]} 8. Bh4 {[%clk 0:02:59.7]}
8... c5 {[%clk 0:02:53]} 9. dxc5 {[%clk 0:02:58.5]} 9... Nc6 {[%clk 0:02:51.2]}
10. Nge2 {[%clk 0:02:55.4]} 10... Bxc5 {[%clk 0:02:42.5]} 11. Bxf6 {[%clk
0:02:53.7]} 11... Qxf6 {[%clk 0:02:43.4]} 12. O-O {[%clk 0:02:42.7]} 12... Be6
{[%clk 0:02:41.5]} 13. Rc1 {[%clk 0:02:34]} 13... Rfd8 {[%clk 0:02:38.6]} 14.
Qa4 {[%clk 0:02:31.8]} 14... Ne5 {[%clk 0:02:32]} 15. Bb1 {[%clk 0:02:23.6]}
15... Rac8 {[%clk 0:02:25.7]} 16. Nb5 {[%clk 0:02:14.3]} 16... Nc4 {[%clk
0:02:03.2]} 17. Nbd4 {[%clk 0:02:08.3]} 17... Nxb2 {[%clk 0:01:45.8]} 18. Qb3
{[%clk 0:02:05.3]} 18... Nc4 {[%clk 0:01:43.9]} 19. Qxb7 {[%clk 0:02:00]} 19...
Bg4 {[%clk 0:01:33.7]} 20. Qb3 {[%clk 0:01:31.9]} 20... Nd2 {[%clk 0:01:28.2]}
21. Qd3 {[%clk 0:01:31.7]} 21... Nxf1 {[%clk 0:01:28.1]} 22. Qh7+ {[%clk
0:01:31.2]} 22... Kf8 {[%clk 0:01:28.6]} 23. Kxf1 {[%clk 0:01:02.2]} 23... Bxd4
{[%clk 0:01:25.6]} 24. Rxc8 {[%clk 0:00:58.1]} 24... Bxe2+ {[%clk 0:01:24.1]}
25. Kxe2 {[%clk 0:00:57]} 25... Qa6+ {[%clk 0:01:24.6]} 26. Bd3 {[%clk
0:00:49.9]} 26... Qxc8 {[%clk 0:01:24.8]} 27. exd4 {[%clk 0:00:50.5]} 27... Qg4+
{[%clk 0:01:19.6]} 28. Kd2 {[%clk 0:00:48.2]} 28... Qxd4 {[%clk 0:01:18.2]} 29.
Qf5 {[%clk 0:00:41.9]} 29... Rb8 {[%clk 0:01:03.8]} 0-1

[Event "*** Titled Tuesday Blitz"]
[Site "Chess.com"]
[Date "2020.05.12"]
[Round "5"]
[White "Drags95"]
[Black "MasterKroket"]
[Result "1-0"]
[WhiteElo "2720"]
[BlackElo "2431"]
[TimeControl "180+1"]
[EndTime "10:54:08 PDT"]
[Termination "Drags95 won by resignation"]

1. e4 {[%clk 0:03:00.9]} 1... c5 {[%clk 0:02:59.4]} 2. Nf3 {[%clk 0:03:00.8]}
2... e6 {[%clk 0:03:00]} 3. d4 {[%clk 0:03:00.5]} 3... cxd4 {[%clk 0:03:00.9]}
4. Nxd4 {[%clk 0:03:01.1]} 4... Nc6 {[%clk 0:03:01.5]} 5. Nc3 {[%clk 0:03:01]}
5... Qc7 {[%clk 0:03:01.9]} 6. Qd3 {[%clk 0:02:58.5]} 6... Nxd4 {[%clk
0:02:59.1]} 7. Qxd4 {[%clk 0:02:59.4]} 7... b6 {[%clk 0:02:48]} 8. Nb5 {[%clk
0:02:24.1]} 8... Qc6 {[%clk 0:02:45.6]} 9. Bf4 {[%clk 0:02:19.8]} 9... d6 {[%clk
0:02:30.3]} 10. Bxd6 {[%clk 0:02:01.3]} 10... Bxd6 {[%clk 0:02:25.7]} 11. Nxd6+
{[%clk 0:02:01.4]} 11... Kf8 {[%clk 0:02:25.4]} 12. O-O-O {[%clk 0:02:02]} 12...
Nf6 {[%clk 0:02:13.7]} 13. Bb5 {[%clk 0:01:56.5]} 13... Qc7 {[%clk 0:02:06.3]}
14. Rd3 {[%clk 0:01:32.8]} 14... a6 {[%clk 0:01:57.9]} 15. Rc3 {[%clk
0:01:30.7]} 15... Qd8 {[%clk 0:01:52.6]} 16. Bc6 {[%clk 0:01:30.8]} 16... Rb8
{[%clk 0:01:45.5]} 17. e5 {[%clk 0:01:31.3]} 17... Nd5 {[%clk 0:01:32.8]} 18.
Rf3 {[%clk 0:01:05]} 18... Qg5+ {[%clk 0:01:10.6]} 19. Kb1 {[%clk 0:01:04.2]}
19... f5 {[%clk 0:00:48.7]} 20. Bxd5 {[%clk 0:01:01.3]} 20... exd5 {[%clk
0:00:41.4]} 21. Qxd5 {[%clk 0:01:01.5]} 21... Qg6 {[%clk 0:00:39.3]} 22. Nxc8
{[%clk 0:00:55.5]} 22... Rxc8 {[%clk 0:00:36.3]} 23. e6 {[%clk 0:00:56.2]} 23...
Re8 {[%clk 0:00:24]} 24. Rxf5+ {[%clk 0:00:53.6]} 1-0

[Event "*** Titled Tuesday Blitz"]
[Site "Chess.com"]
[Date "2020.05.12"]
[Round "5"]
[White "StockholmMissile"]
[Black "CzechmVIII"]
[Result "1-0"]
[WhiteElo "2447"]
[BlackElo "2244"]
[TimeControl "180+1"]
[EndTime "10:54:11 PDT"]
[Termination "StockholmMissile won by resignation"]

1. d4 {[%clk 0:03:00.9]} 1... Nf6 {[%clk 0:02:59.1]} 2. c4 {[%clk 0:03:00.5]}
2... c5 {[%clk 0:02:59.2]} 3. d5 {[%clk 0:03:00.3]} 3... e6 {[%clk 0:02:59.6]}
4. Nc3 {[%clk 0:02:58.8]} 4... exd5 {[%clk 0:02:59.7]} 5. cxd5 {[%clk
0:02:59.7]} 5... d6 {[%clk 0:03:00]} 6. e4 {[%clk 0:03:00.2]} 6... g6 {[%clk
0:03:00.3]} 7. Bd3 {[%clk 0:03:00.4]} 7... Bg7 {[%clk 0:02:58.2]} 8. h3 {[%clk
0:03:00.1]} 8... O-O {[%clk 0:02:56.5]} 9. Nf3 {[%clk 0:02:58.4]} 9... b5 {[%clk
0:02:56.3]} 10. Nxb5 {[%clk 0:02:58.2]} 10... Re8 {[%clk 0:02:56]} 11. O-O
{[%clk 0:02:57.1]} 11... Nxe4 {[%clk 0:02:55]} 12. Re1 {[%clk 0:02:54.9]} 12...
a6 {[%clk 0:02:54.9]} 13. Rxe4 {[%clk 0:02:48.2]} 13... Rxe4 {[%clk 0:02:12.2]}
14. Nxd6 {[%clk 0:02:47.8]} 14... Rb4 {[%clk 0:02:01.6]} 15. a3 {[%clk
0:02:26.7]} 15... Qxd6 {[%clk 0:01:41.8]} 16. axb4 {[%clk 0:02:24.9]} 16... cxb4
{[%clk 0:01:42.1]} 17. Nd2 {[%clk 0:02:21.7]} 17... Bb7 {[%clk 0:01:16.4]} 18.
Ra5 {[%clk 0:02:18.9]} 18... Bd4 {[%clk 0:00:39.4]} 19. Nc4 {[%clk 0:02:09.9]}
19... Qg3 {[%clk 0:00:38]} 20. Be3 {[%clk 0:02:05.6]} 20... Bxe3 {[%clk
0:00:36.3]} 21. Nxe3 {[%clk 0:02:03.3]} 21... Qc7 {[%clk 0:00:34.4]} 22. Qa4
{[%clk 0:02:00.5]} 22... Nd7 {[%clk 0:00:30.4]} 23. Qxb4 {[%clk 0:01:58]} 23...
Re8 {[%clk 0:00:20.2]} 24. Bxa6 {[%clk 0:01:53.9]} 24... Bxa6 {[%clk 0:00:20.2]}
25. Rxa6 {[%clk 0:01:54.8]} 25... Qc1+ {[%clk 0:00:17.8]} 26. Kh2 {[%clk
0:01:52.7]} 26... Qc7+ {[%clk 0:00:16.7]} 27. d6 {[%clk 0:01:50.6]} 27... Qc1
{[%clk 0:00:13.5]} 28. Qa4 {[%clk 0:01:47.5]} 28... Qc8 {[%clk 0:00:11.2]} 29.
Ra7 {[%clk 0:01:41.5]} 29... Rd8 {[%clk 0:00:08.7]} 30. Rc7 {[%clk 0:01:40.3]}
30... Qb8 {[%clk 0:00:06.2]} 31. Rxd7 {[%clk 0:01:38.1]} 31... Rxd7 {[%clk
0:00:06.4]} 32. Qxd7 {[%clk 0:01:38.4]} 32... Qxb2 {[%clk 0:00:07.3]} 33. Qe8+
{[%clk 0:01:37.6]} 33... Kg7 {[%clk 0:00:07]} 34. d7 {[%clk 0:01:38.5]} 34...
Qxf2 {[%clk 0:00:07.1]} 35. d8=Q {[%clk 0:01:37.6]} 35... Qf4+ {[%clk
0:00:04.7]} 36. Kg1 {[%clk 0:01:37.1]} 1-0

[Event "*** Titled Tuesday Blitz"]
[Site "Chess.com"]
[Date "2020.05.12"]
[Round "5"]
[White "davigator"]
[Black "Perecke"]
[Result "1-0"]
[WhiteElo "2370"]
[BlackElo "2192"]
[TimeControl "180+1"]
[EndTime "10:54:11 PDT"]
[Termination "davigator won on time"]

1. e4 {[%clk 0:03:00.9]} 1... e5 {[%clk 0:02:57]} 2. Nf3 {[%clk 0:03:00.5]} 2...
Nc6 {[%clk 0:02:54.3]} 3. Bb5 {[%clk 0:02:57.8]} 3... a6 {[%clk 0:02:50.9]} 4.
Ba4 {[%clk 0:02:49.9]} 4... Nf6 {[%clk 0:02:49.9]} 5. O-O {[%clk 0:02:50]} 5...
Be7 {[%clk 0:02:49]} 6. Re1 {[%clk 0:02:49.7]} 6... b5 {[%clk 0:02:47.8]} 7. Bb3
{[%clk 0:02:50.1]} 7... d6 {[%clk 0:02:47.9]} 8. c3 {[%clk 0:02:50.2]} 8... O-O
{[%clk 0:02:46.2]} 9. h3 {[%clk 0:02:50.6]} 9... Na5 {[%clk 0:02:45.2]} 10. Bc2
{[%clk 0:02:50.7]} 10... c5 {[%clk 0:02:45.8]} 11. d4 {[%clk 0:02:48.5]} 11...
Qc7 {[%clk 0:02:46.2]} 12. Nbd2 {[%clk 0:02:47.9]} 12... cxd4 {[%clk 0:02:46.1]}
13. cxd4 {[%clk 0:02:47.5]} 13... Nc6 {[%clk 0:02:47]} 14. d5 {[%clk 0:02:46.9]}
14... Nb4 {[%clk 0:02:46.9]} 15. Bb1 {[%clk 0:02:47.4]} 15... a5 {[%clk
0:02:47]} 16. a3 {[%clk 0:02:47.8]} 16... Na6 {[%clk 0:02:47.1]} 17. Nf1 {[%clk
0:02:47.9]} 17... Bd7 {[%clk 0:02:47.4]} 18. Ng3 {[%clk 0:02:45.1]} 18... Rfc8
{[%clk 0:02:47.2]} 19. Bd2 {[%clk 0:02:41.7]} 19... b4 {[%clk 0:02:36.8]} 20.
axb4 {[%clk 0:02:28.7]} 20... a4 {[%clk 0:02:34.3]} 21. Bd3 {[%clk 0:02:23.6]}
21... Qb7 {[%clk 0:02:29.3]} 22. b5 {[%clk 0:02:23.2]} 22... Nc5 {[%clk
0:02:25.3]} 23. Bc3 {[%clk 0:02:13.8]} 23... Bxb5 {[%clk 0:02:21.1]} 24. Bc2
{[%clk 0:02:11.4]} 24... Bf8 {[%clk 0:01:29.1]} 25. Qd2 {[%clk 0:02:06.9]} 25...
g6 {[%clk 0:01:12.1]} 26. Qg5 {[%clk 0:01:58.5]} 26... Bg7 {[%clk 0:01:06.9]}
27. Nh4 {[%clk 0:01:56.4]} 27... h6 {[%clk 0:01:04.5]} 28. Qd2 {[%clk
0:01:55.6]} 28... Qc7 {[%clk 0:00:52.8]} 29. Re3 {[%clk 0:01:54.4]} 29... Nb3
{[%clk 0:00:26]} 30. Bxb3 {[%clk 0:01:51.5]} 30... axb3 {[%clk 0:00:26.9]} 31.
Rae1 {[%clk 0:01:47.1]} 31... Ra2 {[%clk 0:00:14.6]} 32. Rf3 {[%clk 0:01:45.8]}
32... Kh7 {[%clk 0:00:13.4]} 33. Nhf5 {[%clk 0:01:44.8]} 33... gxf5 {[%clk
0:00:13]} 34. Nxf5 {[%clk 0:01:44.8]} 34... Ng8 {[%clk 0:00:01.1]} 35. Rg3
{[%clk 0:01:44]} 35... Bf8 {[%clk 0:00:01.2]} 36. f4 {[%clk 0:01:40.8]} 1-0

[Event "*** Titled Tuesday Blitz"]
[Site "Chess.com"]
[Date "2020.05.12"]
[Round "5"]
[White "kot60"]
[Black "tgpgoat"]
[Result "1-0"]
[WhiteElo "2340"]
[BlackElo "2084"]
[TimeControl "180+1"]
[EndTime "10:54:16 PDT"]
[Termination "kot60 won by resignation"]

1. e4 {[%clk 0:03:00.9]} 1... c5 {[%clk 0:02:59.6]} 2. Nc3 {[%clk 0:03:00.1]}
2... Nc6 {[%clk 0:02:59.6]} 3. Bc4 {[%clk 0:03:00.3]} 3... g6 {[%clk 0:02:58.9]}
4. d3 {[%clk 0:03:00.3]} 4... Bg7 {[%clk 0:02:58.8]} 5. f4 {[%clk 0:03:00.6]}
5... e6 {[%clk 0:02:58.7]} 6. f5 {[%clk 0:03:00]} 6... Nge7 {[%clk 0:02:57.1]}
7. Nge2 {[%clk 0:02:58.2]} 7... d5 {[%clk 0:02:56.2]} 8. Bb3 {[%clk 0:02:54.1]}
8... O-O {[%clk 0:02:54.7]} 9. O-O {[%clk 0:02:34.8]} 9... exf5 {[%clk
0:02:45.8]} 10. Nxd5 {[%clk 0:02:26.6]} 10... Nxd5 {[%clk 0:02:45.4]} 11. Bxd5
{[%clk 0:02:20.4]} 11... fxe4 {[%clk 0:02:44.9]} 12. Bxe4 {[%clk 0:02:13.9]}
12... Be6 {[%clk 0:02:43.7]} 13. Kh1 {[%clk 0:02:10.3]} 13... Rc8 {[%clk
0:02:43.4]} 14. Nf4 {[%clk 0:02:09.3]} 14... Bd7 {[%clk 0:02:41.8]} 15. c3
{[%clk 0:02:04.7]} 15... b6 {[%clk 0:02:41.6]} 16. Qf3 {[%clk 0:01:55.7]} 16...
Ne5 {[%clk 0:02:41.1]} 17. Qg3 {[%clk 0:01:55.5]} 17... Bc6 {[%clk 0:02:39.5]}
18. Be3 {[%clk 0:01:44]} 18... Bxe4 {[%clk 0:02:33.2]} 19. dxe4 {[%clk
0:01:43.4]} 19... Qc7 {[%clk 0:02:34]} 20. Nd5 {[%clk 0:01:42.1]} 20... Qd6
{[%clk 0:02:30.6]} 21. Bf4 {[%clk 0:01:38.5]} 21... Qe6 {[%clk 0:02:27.9]} 22.
h3 {[%clk 0:01:35.1]} 22... Nc4 {[%clk 0:02:20.5]} 23. Bg5 {[%clk 0:00:59.8]}
23... Nd2 {[%clk 0:01:58.6]} 24. Bxd2 {[%clk 0:00:57.9]} 24... Qxe4 {[%clk
0:01:58.2]} 25. Nf6+ {[%clk 0:00:56.9]} 25... Bxf6 {[%clk 0:01:57.3]} 26. Rxf6
{[%clk 0:00:57.8]} 26... Qc2 {[%clk 0:01:56.7]} 27. Qf4 {[%clk 0:00:54.4]} 27...
Qxb2 {[%clk 0:01:55.2]} 28. Rf1 {[%clk 0:00:48.9]} 28... Qxa2 {[%clk 0:01:43]}
29. Rd6 {[%clk 0:00:24.3]} 29... a5 {[%clk 0:01:30]} 30. Qf6 {[%clk 0:00:22.6]}
30... Qe6 {[%clk 0:01:11.5]} 31. Rxe6 {[%clk 0:00:21.7]} 31... fxe6 {[%clk
0:01:12]} 32. Qxe6+ {[%clk 0:00:21.4]} 32... Kg7 {[%clk 0:01:12.5]} 33. Qe7+
{[%clk 0:00:19.1]} 33... Kg8 {[%clk 0:01:10.4]} 34. Rxf8+ {[%clk 0:00:18.9]}
34... Rxf8 {[%clk 0:01:11.3]} 35. Bh6 {[%clk 0:00:18.7]} 35... Rf7 {[%clk
0:01:11.2]} 36. Qe8+ {[%clk 0:00:18.3]} 1-0

[Event "*** Titled Tuesday Blitz"]
[Site "Chess.com"]
[Date "2020.05.12"]
[Round "5"]
[White "Micki-taryan"]
[Black "Gergo85"]
[Result "1-0"]
[WhiteElo "3061"]
[BlackElo "2518"]
[TimeControl "180+1"]
[EndTime "10:54:17 PDT"]
[Termination "Micki-taryan won by checkmate"]

1. d4 {[%clk 0:03:00.9]} 1... d5 {[%clk 0:02:58.9]} 2. Nf3 {[%clk 0:03:01.1]}
2... Nf6 {[%clk 0:02:58.5]} 3. c4 {[%clk 0:03:01.6]} 3... dxc4 {[%clk
0:02:58.3]} 4. e3 {[%clk 0:03:00.3]} 4... Bg4 {[%clk 0:02:58.3]} 5. Bxc4 {[%clk
0:03:00.2]} 5... e6 {[%clk 0:02:58.9]} 6. h3 {[%clk 0:03:00.3]} 6... Bh5 {[%clk
0:02:58.7]} 7. Nbd2 {[%clk 0:03:00.7]} 7... a6 {[%clk 0:02:54.1]} 8. Be2 {[%clk
0:03:00]} 8... Nc6 {[%clk 0:02:44.7]} 9. O-O {[%clk 0:02:59.2]} 9... Bd6 {[%clk
0:02:43.4]} 10. b3 {[%clk 0:02:58]} 10... O-O {[%clk 0:02:42.9]} 11. Bb2 {[%clk
0:02:58.5]} 11... Nd5 {[%clk 0:02:36.8]} 12. Ne5 {[%clk 0:02:51.3]} 12... Bxe2
{[%clk 0:02:29.8]} 13. Qxe2 {[%clk 0:02:52.2]} 13... Nxe5 {[%clk 0:01:39.9]} 14.
dxe5 {[%clk 0:02:53.1]} 14... Bb4 {[%clk 0:01:40.2]} 15. Ne4 {[%clk 0:02:47.5]}
15... Qh4 {[%clk 0:01:39.9]} 16. Qc2 {[%clk 0:02:22.6]} 16... Rfd8 {[%clk
0:01:16.9]} 17. Rfd1 {[%clk 0:02:20.1]} 17... Bf8 {[%clk 0:01:09.5]} 18. Rd4
{[%clk 0:02:13.7]} 18... Qh5 {[%clk 0:01:01.1]} 19. Rad1 {[%clk 0:02:08.5]}
19... Qg6 {[%clk 0:00:52.9]} 20. Qb1 {[%clk 0:01:59.4]} 20... Be7 {[%clk
0:00:47.8]} 21. a3 {[%clk 0:01:52]} 21... h6 {[%clk 0:00:45.3]} 22. b4 {[%clk
0:01:51.6]} 22... Nb6 {[%clk 0:00:44.9]} 23. Qc1 {[%clk 0:01:42.1]} 23... Rxd4
{[%clk 0:00:43.4]} 24. Rxd4 {[%clk 0:01:43]} 24... Nd5 {[%clk 0:00:41.7]} 25.
Nd2 {[%clk 0:01:37.8]} 25... h5 {[%clk 0:00:38.4]} 26. Nf3 {[%clk 0:01:35.8]}
26... c6 {[%clk 0:00:37.2]} 27. e4 {[%clk 0:01:35.2]} 27... Nb6 {[%clk
0:00:35.9]} 28. Qd1 {[%clk 0:01:35]} 28... h4 {[%clk 0:00:27.3]} 29. Bc3 {[%clk
0:01:30.6]} 29... Re8 {[%clk 0:00:24.1]} 30. a4 {[%clk 0:01:29]} 30... c5 {[%clk
0:00:20.6]} 31. bxc5 {[%clk 0:01:29.5]} 31... Bxc5 {[%clk 0:00:20.7]} 32. Rd8
{[%clk 0:01:30.1]} 32... Rxd8 {[%clk 0:00:18.5]} 33. Qxd8+ {[%clk 0:01:28.1]}
33... Kh7 {[%clk 0:00:17.1]} 34. Ng5+ {[%clk 0:01:28.4]} 34... Kh6 {[%clk
0:00:16.5]} 35. Qh8+ {[%clk 0:01:23.7]} 35... Kxg5 {[%clk 0:00:16.5]} 36. Bd2+
{[%clk 0:01:24]} 36... Be3 {[%clk 0:00:14.4]} 37. Bxe3# {[%clk 0:01:24.2]} 1-0

[Event "*** Titled Tuesday Blitz"]
[Site "Chess.com"]
[Date "2020.05.12"]
[Round "5"]
[White "kingmonkey2006"]
[Black "allvim"]
[Result "1-0"]
[WhiteElo "2659"]
[BlackElo "2275"]
[TimeControl "180+1"]
[EndTime "10:54:17 PDT"]
[Termination "kingmonkey2006 won on time"]

1. Nf3 {[%clk 0:03:00.9]} 1... Nf6 {[%clk 0:02:59.5]} 2. g3 {[%clk 0:03:01.8]}
2... d5 {[%clk 0:02:59.4]} 3. Bg2 {[%clk 0:03:01.8]} 3... e6 {[%clk 0:02:59.5]}
4. O-O {[%clk 0:02:50.7]} 4... Be7 {[%clk 0:03:00.4]} 5. d4 {[%clk 0:02:50.7]}
5... O-O {[%clk 0:03:01]} 6. c4 {[%clk 0:02:51.4]} 6... dxc4 {[%clk 0:02:59.7]}
7. Qc2 {[%clk 0:02:50.8]} 7... a6 {[%clk 0:02:59.7]} 8. Qxc4 {[%clk 0:02:51.1]}
8... b5 {[%clk 0:03:00.4]} 9. Qc2 {[%clk 0:02:51.3]} 9... Bb7 {[%clk 0:03:00.6]}
10. a4 {[%clk 0:02:49.9]} 10... b4 {[%clk 0:02:57.3]} 11. Nbd2 {[%clk
0:02:48.9]} 11... Nbd7 {[%clk 0:02:56.2]} 12. Nb3 {[%clk 0:02:46.6]} 12... Be4
{[%clk 0:02:55.8]} 13. Qd1 {[%clk 0:02:45.8]} 13... Rc8 {[%clk 0:02:49.4]} 14.
Be3 {[%clk 0:02:36.7]} 14... c5 {[%clk 0:02:39.7]} 15. dxc5 {[%clk 0:02:18.8]}
15... Nxc5 {[%clk 0:02:40.6]} 16. Bxc5 {[%clk 0:02:19]} 16... Bxc5 {[%clk
0:02:40]} 17. Qe1 {[%clk 0:02:14.9]} 17... a5 {[%clk 0:02:08.6]} 18. Nfd2 {[%clk
0:02:14]} 18... Bxg2 {[%clk 0:02:07]} 19. Kxg2 {[%clk 0:02:14.9]} 19... Qd5+
{[%clk 0:02:00.2]} 20. Kg1 {[%clk 0:02:14.2]} 20... Bb6 {[%clk 0:01:57]} 21. Rd1
{[%clk 0:02:12.5]} 21... Rfd8 {[%clk 0:01:50.7]} 22. Rc1 {[%clk 0:01:53.2]}
22... Ng4 {[%clk 0:01:45.7]} 23. e3 {[%clk 0:01:38.1]} 23... Rxc1 {[%clk
0:00:45]} 24. Qxc1 {[%clk 0:01:39]} 24... Nxe3 {[%clk 0:00:45.7]} 25. fxe3
{[%clk 0:01:39.3]} 25... Bxe3+ {[%clk 0:00:46.6]} 26. Rf2 {[%clk 0:01:40.1]}
26... Qg5 {[%clk 0:00:10.5]} 27. Qe1 {[%clk 0:01:38.2]} 27... Bxf2+ {[%clk
0:00:04.1]} 28. Qxf2 {[%clk 0:01:39.1]} 28... h5 {[%clk 0:00:03.4]} 29. Kg2
{[%clk 0:01:31.7]} 29... Qd5+ {[%clk 0:00:03.3]} 30. Qf3 {[%clk 0:01:31.9]}
30... Qd6 {[%clk 0:00:02.5]} 31. Nc4 {[%clk 0:01:31.8]} 1-0

[Event "*** Titled Tuesday Blitz"]
[Site "Chess.com"]
[Date "2020.05.12"]
[Round "5"]
[White "kingofthenil"]
[Black "tan275"]
[Result "1-0"]
[WhiteElo "2462"]
[BlackElo "2187"]
[TimeControl "180+1"]
[EndTime "10:54:23 PDT"]
[Termination "kingofthenil won on time"]

1. d4 {[%clk 0:03:00.9]} 1... d5 {[%clk 0:02:56.6]} 2. c4 {[%clk 0:03:01.8]}
2... e6 {[%clk 0:02:56.1]} 3. Nc3 {[%clk 0:03:02.3]} 3... Be7 {[%clk 0:02:54.8]}
4. Nf3 {[%clk 0:03:02.5]} 4... Nf6 {[%clk 0:02:54.1]} 5. g3 {[%clk 0:03:02.1]}
5... dxc4 {[%clk 0:02:44.1]} 6. Bg2 {[%clk 0:03:02]} 6... c5 {[%clk 0:02:43.1]}
7. dxc5 {[%clk 0:03:02.9]} 7... Qxd1+ {[%clk 0:02:41.6]} 8. Nxd1 {[%clk
0:03:03.8]} 8... Bxc5 {[%clk 0:02:37.8]} 9. Ne5 {[%clk 0:02:44.2]} 9... O-O
{[%clk 0:02:34.5]} 10. O-O {[%clk 0:02:41.9]} 10... Nc6 {[%clk 0:02:30.9]} 11.
Nxc4 {[%clk 0:02:33.8]} 11... Bd7 {[%clk 0:02:02.7]} 12. Nc3 {[%clk 0:02:26.4]}
12... Rfd8 {[%clk 0:01:50.2]} 13. Be3 {[%clk 0:02:22.7]} 13... Bxe3 {[%clk
0:01:47.8]} 14. Nxe3 {[%clk 0:02:23.6]} 14... Ne5 {[%clk 0:01:39.5]} 15. Rfd1
{[%clk 0:02:20.9]} 15... Bc6 {[%clk 0:01:35.9]} 16. f4 {[%clk 0:02:20.4]} 16...
Neg4 {[%clk 0:01:31.7]} 17. Nxg4 {[%clk 0:02:16.4]} 17... Nxg4 {[%clk
0:01:31.9]} 18. Bxc6 {[%clk 0:02:13]} 18... bxc6 {[%clk 0:01:30.1]} 19. Ne4
{[%clk 0:02:13.9]} 19... Rd5 {[%clk 0:01:08.3]} 20. h3 {[%clk 0:02:05.3]} 20...
Ne3 {[%clk 0:01:04.8]} 21. Rdc1 {[%clk 0:02:06.2]} 21... f5 {[%clk 0:00:34.5]}
22. Nc5 {[%clk 0:01:57.4]} 22... Rd2 {[%clk 0:00:21.2]} 23. Kf2 {[%clk
0:01:52.1]} 23... Nc2 {[%clk 0:00:19.5]} 24. Rab1 {[%clk 0:01:49.9]} 24... Nb4
{[%clk 0:00:19.2]} 25. Ke3 {[%clk 0:01:46.9]} 25... Rd5 {[%clk 0:00:13.3]} 26.
a3 {[%clk 0:01:44.9]} 26... Na2 {[%clk 0:00:10.9]} 27. Rc4 {[%clk 0:01:38.7]}
27... Rad8 {[%clk 0:00:09]} 28. Nd3 {[%clk 0:01:32.3]} 28... e5 {[%clk
0:00:03.2]} 29. fxe5 {[%clk 0:01:30.1]} 29... c5 {[%clk 0:00:02.6]} 30. b3
{[%clk 0:01:25.9]} 30... Rd4 {[%clk 0:00:01.5]} 31. Rxc5 {[%clk 0:01:24.2]} 1-0